bitfinex-derivatives/quotes_SOLF0:USTF0_20241230
["timestamp","ask_amount","ask_price","bid_price","bid_amount"]
[1735540853563,8.26547368,192.89,192.86,2.598]
[1735540853969,2.9913,192.95,192.88,2.5978]
[1735540854173,8.26547368,192.92,192.85,11.30547368]
[1735540854363,8.26547368,192.92,192.86,3.96618666]
[1735540854564,8.26547368,192.92,192.85,11.30547368]
[1735540854769,8.26547368,192.92,192.88,2.5977]
[1735540861679,8.26547368,192.92,192.9,2.5975]
[1735540865775,2.5967,192.97,192.92,2.5972]
[1735540865976,8.26547368,192.95,192.92,2.5972]
[1735540866382,8.26547368,192.95,192.87,11.30547368]
[1735540866682,8.26547368,192.95,192.93,2.5971]
[1735540867281,8.26547368,192.97,192.92,3.04]
[1735540867482,8.26547368,192.99,192.93,15.26454602]
[1735540867783,8.26547368,192.99,192.94,3.04]
[1735540868682,8.26547368,192.99,192.95,2.5968]
[1735540875787,8.26547368,192.97,192.87,1.5716]
[1735540875982,3.04,193.02,192.87,1.5716]
[1735540876185,8.26547368,192.93,192.88,6.99986602]
[1735540876486,10.86267368,192.93,192.89,6.55746602]
[1735540876686,8.26547368,192.93,192.88,3.04]
[1735540876887,2.5975,192.9,192.86,12.72460899]
[1735540877081,8.26547368,192.89,192.87,3.96179102]
[1735540877284,8.26547368,192.89,192.83,9.87197368]
[1735540877483,8.26547368,192.89,192.84,7.00319856]
[1735540877683,8.26547368,192.89,192.85,3.96319856]
[1735540877885,8.26547368,192.89,192.86,3.96319856]
[1735540878090,8.26547368,192.89,192.82,7.08650899]
[1735540878388,8.26547368,192.87,192.83,9.60202479]
[1735540878587,8.26547368,192.87,192.84,3.96352479]
[1735540878888,8.26547368,192.87,192.83,5.6385]
[1735540879087,8.26547368,192.87,192.84,3.96466425]
[1735540879289,8.26547368,192.87,192.83,5.6385]
[1735540879484,8.26547368,192.89,192.84,6.56299165]
[1735540879787,8.26547368,192.87,192.83,3.04]
[1735540879986,2.5981,192.86,192.83,3.04]
[1735540881286,8.26547368,192.85,192.8,11.30547368]
[1735540881587,8.26547368,192.85,192.8,3.04]
[1735540881793,8.26547368,192.85,192.81,3.96579563]
[1735540881983,8.26547368,192.85,192.8,3.04]
[1735540882186,8.26547368,192.85,192.81,3.96580006]
[1735540882386,10.86367368,192.85,192.8,3.04]
[1735540882593,10.86367368,192.85,192.81,3.96532696]
[1735540882887,8.26547368,192.85,192.79,3.04]
[1735540883094,2.5985,192.83,192.8,3.96603051]
[1735540883292,2.5985,192.83,192.79,3.04]
[1735540883495,2.5985,192.83,192.8,3.965342]
[1735540883692,2.5985,192.83,192.78,8.26547368]
[1735540883885,2.5987,192.81,192.79,3.96531491]
[1735540884089,2.5987,192.81,192.8,3.96531491]
[1735540884596,8.26547368,192.83,192.77,3.04]
[1735540884795,2.5986,192.82,192.78,3.96480086]
[1735540884992,8.26547368,192.81,192.79,3.96480086]
[1735540885285,8.26547368,192.81,192.74,2.5997]
[1735540885286,8.26547368,192.81,192.75,3.04]
[1735540885490,8.26547368,192.81,192.74,2.5997]
[1735540885491,8.26547368,192.81,192.74,3.04]
[1735540885693,8.26547368,192.77,192.75,3.9657213]
[1735540885894,8.26547368,192.77,192.72,31.38603597]
[1735540886096,8.26547368,192.77,192.73,3.96606057]
[1735540886292,8.26547368,192.77,192.74,3.96606057]
[1735540886496,10.86477368,192.77,192.72,3.04]
[1735540886696,8.26547368,192.77,192.73,3.96456882]
[1735540886997,8.26547368,192.77,192.73,2.5998]
[1735540887293,8.26547368,192.77,192.72,3.04]
[1735540888498,2.5995,192.76,192.72,3.04]
[1735540889199,10.86477368,192.77,192.72,3.04]
[1735540889699,10.86457368,192.79,192.72,11.30547368]
[1735540890000,8.26547368,192.79,192.72,11.30547368]
[1735540890401,2.5993,192.78,192.72,11.30547368]
[1735540890801,2.5993,192.78,192.72,13.90527368]
[1735540891104,8.26547368,192.77,192.72,3.04]
[1735540891694,10.86477368,192.77,192.72,5.64]
[1735540892705,10.86477368,192.77,192.72,3.04]
[1735540892999,2.5993,192.77,192.72,3.04]
[1735540893202,10.86477368,192.77,192.72,5.64]
[1735540896710,10.86477368,192.77,192.72,3.04]
[1735540898913,10.86507368,192.75,192.72,3.04]
[1735540902614,10.86507368,192.75,192.71,2.6001]
[1735540903819,10.86477368,192.77,192.73,2.5998]
[1735540904314,2.5994,192.76,192.73,2.5998]
[1735540905819,2.5994,192.76,192.7,8.26547368]
[1735540906019,2.5994,192.76,192.72,2.5999]
[1735540906220,2.5994,192.76,192.7,8.26547368]
[1735540906419,2.5994,192.76,192.71,2.6]
[1735540906720,2.5994,192.76,192.7,8.26547368]
[1735540908120,2.5994,192.76,192.72,2.5998]
[1735540908322,10.86517368,192.75,192.69,3.04]
[1735540909120,10.86517368,192.75,192.7,2.6001]
[1735540909511,8.26547368,192.75,192.69,3.04]
[1735540909910,8.26547368,192.75,192.68,3.94520128]
[1735540910116,10.86507368,192.75,192.69,3.04]
[1735540910621,10.86507368,192.75,192.7,2.6001]
[1735540911023,2.5998,192.74,192.7,2.6001]
[1735540911624,2.5999,192.73,192.68,13.90597368]
[1735540911820,10.86537368,192.73,192.68,5.6405]
[1735540912017,10.86537368,192.73,192.68,2.6005]
[1735540915325,8.26547368,192.73,192.67,3.04]
[1735540915630,2.6001,192.71,192.67,5.6406]
[1735540916119,8.26547368,192.73,192.66,9.4866385]
[1735540916324,2.6003,192.7,192.66,44.94455053]
[1735540916523,8.26547368,192.71,192.66,44.94455053]
[1735540916925,2.6005,192.69,192.66,44.94455053]
[1735540917522,2.6005,192.69,192.64,13.90647368]
[1735540918631,10.86597368,192.69,192.64,5.641]
[1735540919227,10.86597368,192.69,192.64,2.601]
[1735540919429,8.26547368,192.69,192.65,3.96421887]
[1735540919618,2.6006,192.68,192.64,2.601]
[1735540919824,2.6006,192.68,192.65,3.96437023]
[1735540920029,2.6006,192.68,192.64,2.601]
[1735540920328,2.6006,192.68,192.65,3.96431568]
[1735540920529,2.6006,192.67,192.66,3.96431568]
[1735540920831,2.6006,192.67,192.63,28.34603597]
[1735540921028,2.6006,192.67,192.64,3.96927639]
[1735540921228,8.26547368,192.69,192.63,28.34603597]
[1735540921229,2.6005,192.68,192.65,3.96930723]
[1735540921430,8.26547368,192.69,192.66,3.97218696]
[1735540921728,2.5999,192.73,192.68,2.6005]
[1735540921918,8.26547368,192.72,192.65,8.26547368]
[1735540922121,8.26547368,192.72,192.66,3.97155105]
[1735540922323,8.26547368,192.72,192.69,2.6003]
[1735540922628,4.639,192.77,192.64,7.08650899]
[1735540922629,8.26547368,192.7,192.64,7.08650899]
[1735540922825,10.86577368,192.7,192.65,6.57413026]
[1735540923030,10.86577368,192.7,192.66,3.97323026]
[1735540923229,10.86577368,192.7,192.65,2.6009]
[1735540923527,8.26547368,192.7,192.66,3.97379092]
[1735540923830,86.4460941,192.9,192.69,8.26547368]
[1735540924030,8.26547368,192.78,192.71,8.26547368]
[1735540924325,10.86467368,192.78,192.73,2.5997]
[1735540924629,8.26547368,192.78,192.72,3.04]
[1735540924825,8.26547368,192.78,192.73,3.97625315]
[1735540925020,8.26547368,192.78,192.74,3.97625315]
[1735540925328,8.26547368,192.78,192.75,3.97625315]
[1735540925629,8.26547368,192.78,192.74,2.5997]
[1735540925828,8.26547368,192.78,192.75,3.97869659]
[1735540926031,8.26547368,192.78,192.72,3.04]
[1735540926227,8.26547368,192.78,192.73,6.57849659]
[1735540926427,8.26547368,192.78,192.74,3.97869659]
[1735540926626,8.26547368,192.78,192.75,3.97869659]
[1735540926923,8.26547368,192.78,192.73,2.5998]
[1735540927129,8.26547368,192.78,192.74,3.98032222]
[1735540927424,8.26547368,192.78,192.75,3.98032222]
[1735540927632,8.26547368,192.78,192.76,3.98032222]
[1735540927932,8.26547368,192.8,192.73,8.26547368]
[1735540928131,8.26547368,192.8,192.74,3.98169094]
[1735540928431,10.86447368,192.8,192.75,6.58119094]
[1735540928626,10.86447368,192.8,192.76,3.98169094]
[1735540928826,10.86447368,192.8,192.75,2.5995]
[1735540929130,8.26547368,192.8,192.76,6.58295754]
[1735540929330,8.26547368,192.8,192.73,8.26547368]
[1735540929331,8.26547368,192.8,192.77,3.98355754]
[1735540929525,8.26547368,192.8,192.78,3.98355754]
[1735540929721,8.26547368,192.8,192.73,8.26547368]
[1735540930127,8.26547368,192.8,192.74,3.98380948]
[1735540930322,8.26547368,192.8,192.75,3.98370944]
[1735540930628,8.26547368,192.8,192.76,2.5993]
[1735540930826,8.26547368,192.8,192.77,3.98429918]
[1735540931031,8.26547368,192.8,192.78,3.98429918]
[1735540931332,8.26547368,192.8,192.76,2.5993]
[1735540931632,8.26547368,192.8,192.77,3.98301909]
[1735540931832,8.26547368,192.8,192.77,2.5993]
[1735540934131,2.5986,192.82,192.77,2.5993]
[1735540934331,8.26547368,192.81,192.77,2.5993]
[1735540934831,8.26547368,192.81,192.78,3.98211072]
[1735540935027,2.5986,192.82,192.77,2.5993]
[1735540935231,2.5986,192.82,192.78,3.98162785]
[1735540935429,2.5986,192.82,192.79,3.98162785]
[1735540935623,2.5986,192.82,192.77,2.5993]
[1735540935828,2.5986,192.82,192.78,3.98065278]
[1735540936035,2.5986,192.82,192.79,3.98065278]
[1735540936327,2.5986,192.82,192.77,5.6393]
[1735540936538,8.26547368,192.81,192.78,3.98031385]
[1735540936735,10.86427368,192.81,192.79,3.98031385]
[1735540936934,10.86427368,192.81,192.77,3.04]
[1735540937135,10.86427368,192.81,192.78,3.97911771]
[1735540937435,10.86427368,192.81,192.79,3.97911771]
[1735540937733,10.86427368,192.81,192.77,3.04]
[1735540937931,10.86427368,192.81,192.78,3.97927502]
[1735540938133,2.599,192.8,192.77,3.04]
[1735540938336,8.26547368,192.79,192.74,5.6396]
[1735540938534,8.26547368,192.79,192.75,3.97973617]
[1735540938726,10.86447368,192.79,192.76,3.97973617]
[1735540938932,10.86447368,192.79,192.77,3.97973617]
[1735540939132,10.86447368,192.79,192.75,2.5996]
[1735540939334,8.26547368,192.79,192.75,2.5996]
[1735540939633,2.5989,192.8,192.76,3.98017246]
[1735540939934,10.86427368,192.81,192.76,2.5994]
[1735540940132,10.86427368,192.81,192.77,3.9796718]
[1735540940326,10.86427368,192.81,192.76,2.5994]
[1735540940531,10.86427368,192.81,192.77,3.97927995]
[1735540940836,10.86427368,192.81,192.78,3.97918051]
[1735540941035,10.86427368,192.81,192.76,2.5994]
[1735540941239,10.86427368,192.81,192.77,3.97914004]
[1735540941436,10.86427368,192.81,192.78,3.97914004]
[1735540941638,10.86427368,192.81,192.76,2.5994]
[1735540941837,10.86427368,192.81,192.77,3.97883406]
[1735540942038,10.86427368,192.81,192.76,2.5994]
[1735540942340,10.86427368,192.81,192.77,3.97883382]
[1735540942644,10.86427368,192.81,192.76,2.5994]
[1735540942837,10.86427368,192.81,192.77,3.97856855]
[1735540943037,10.86427368,192.81,192.76,2.5994]
[1735540943237,10.86427368,192.81,192.77,3.9796409]
[1735540943442,10.86427368,192.81,192.76,2.5994]
[1735540943642,10.86427368,192.81,192.77,3.97923782]
[1735540943941,10.86427368,192.81,192.76,2.5994]
[1735540944140,10.86427368,192.81,192.77,3.97948037]
[1735540944342,10.86427368,192.81,192.76,2.5994]
[1735540944544,10.86427368,192.81,192.77,3.97936782]
[1735540944736,10.86427368,192.81,192.76,2.5994]
[1735540945341,8.26547368,192.81,192.74,11.30547368]
[1735540945542,8.26547368,192.81,192.77,2.5992]
[1735540954457,10.86407368,192.82,192.78,6.57756919]
[1735540954656,10.86407368,192.82,192.78,2.5991]
[1735540955165,8.26547368,192.84,192.8,2.5988]
[1735540955557,8.26547368,192.86,192.79,3.04]
[1735540956058,10.86357368,192.86,192.8,12.24340289]
[1735540956251,10.86357368,192.86,192.8,8.26547368]
[1735540956651,8.26547368,192.88,192.82,8.26547368]
[1735540956855,8.26547368,192.9,192.84,8.26547368]
[1735540957057,8.26547368,192.9,192.84,11.30547368]
[1735540957262,8.26547368,192.9,192.87,2.5978]
[1735540957563,8.26547368,192.9,192.84,11.30547368]
[1735540957859,8.26547368,192.9,192.85,3.97255927]
[1735540958060,8.26547368,192.9,192.87,2.5978]
[1735540958261,8.26547368,192.9,192.84,11.30547368]
[1735540958458,8.26547368,192.9,192.85,3.97293434]
[1735540958657,8.26547368,192.9,192.85,2.5981]
[1735540959462,8.26547368,192.9,192.84,11.30547368]
[1735540959668,8.26547368,192.9,192.86,2.598]
[1735540963761,2.5974,192.91,192.86,2.598]
[1735540963963,8.26547368,192.95,192.89,2.5976]
[1735540964161,8.26547368,192.95,192.89,5.6376]
[1735540964361,8.26547368,192.95,192.91,2.5974]
[1735540968271,8.26547368,192.95,192.92,2.5972]
[1735540969770,8.26547368,192.95,192.91,2.5974]
[1735540972877,2.5968,192.96,192.91,2.5974]
[1735540978872,8.26547368,192.97,192.91,2.5974]
[1735540979075,8.26547368,193.01,192.94,8.26547368]
[1735540979281,8.26547368,193.03,192.96,8.26547368]
[1735540979481,2.5961,193.02,192.97,2.5965]
[1735540979682,8.26547368,193.03,192.97,2.5965]
[1735540980177,8.26547368,193.03,192.96,8.26547368]
[1735540980382,2.5963,193.0,192.96,8.26547368]
[1735540980583,8.26547368,193.01,192.95,5.6368]
[1735540980882,8.26547368,192.99,192.95,5.6368]
[1735540981783,8.26547368,193.01,192.95,5.6368]
[1735540981984,8.26547368,193.01,192.96,10.86207368]
[1735540982679,2.5962,193.0,192.96,10.86207368]
[1735540983880,10.86157368,193.01,192.96,10.86207368]
[1735540985174,3.2087,193.07,192.98,2.5964]
[1735540985175,2.5959,193.03,192.98,2.5964]
[1735540985784,2.5959,193.03,192.99,2.5963]
[1735540986689,2.5959,193.02,192.99,2.5963]
[1735540987186,2.5962,193.0,192.95,3.04]
[1735540988182,2.5962,193.0,192.96,8.26547368]
[1735540988578,2.5962,193.0,192.96,10.86217368]
[1735540993196,10.86147368,193.02,192.97,2.5966]
[1735540993487,2.596,193.02,192.98,8.26547368]
[1735540994086,2.596,193.02,192.97,2.5966]
[1735540994592,2.5963,193.0,192.96,8.26547368]
[1735540995595,8.26547368,193.02,192.96,8.26547368]
[1735540995596,2.596,193.02,192.98,2.5964]
[1735540996094,2.5961,193.01,192.97,2.5966]
[1735540996485,2.5961,193.01,192.96,8.26547368]
[1735540996690,2.5961,193.01,192.96,11.28547368]
[1735540996885,2.5961,193.01,192.97,2.5966]
[1735541004795,2.5959,193.03,192.99,2.5963]
[1735541005199,2.5959,193.03,192.98,8.26547368]
[1735541005400,2.5957,193.04,193.0,2.5962]
[1735541005998,11.47417368,193.07,193.03,2.5958]
[1735541006299,9.85547368,193.07,193.03,2.5958]
[1735541006503,4.1853,193.07,193.03,2.5958]
[1735541007196,2.5954,193.06,193.03,2.5958]
[1735541007500,1.5341,193.09,193.02,8.26547368]
[1735541007704,9.79957368,193.09,193.02,8.26547368]
[1735541007898,12.39467368,193.09,193.02,8.26547368]
[1735541008195,12.39467368,193.09,193.01,3.02]
[1735541008400,12.39467368,193.09,193.04,2.5955]
[1735541008695,9.79957368,193.09,193.04,2.5955]
[1735541008900,2.5952,193.08,193.04,2.5955]
[1735541010496,2.5952,193.08,193.03,10.86127368]
[1735541016098,2.5944,193.14,193.09,2.595]
[1735541016302,8.26547368,193.16,193.1,8.26547368]
[1735541017509,8.26547368,193.16,193.11,2.5947]
[1735541018706,8.26547368,193.16,193.1,8.26547368]
[1735541019006,2.5939,193.17,193.1,8.26547368]
[1735541019403,2.5939,193.17,193.12,8.26547368]
[1735541019604,2.5939,193.17,193.13,2.5944]
[1735541020208,10.85927368,193.18,193.13,2.5944]
[1735541026404,8.26547368,193.16,193.06,1.6135]
[1735541026709,8.26547368,193.1,193.05,1.6032]
[1735541027008,2.595,193.09,193.04,13.88097368]
[1735541027708,10.86037368,193.1,193.05,2.5955]
[1735541028402,8.26547368,193.1,193.04,11.28547368]
[1735541028608,8.26547368,193.08,193.04,3.02]
[1735541030108,8.26547368,193.1,193.04,3.02]
[1735541030902,8.26547368,193.1,193.03,8.26547368]
[1735541031208,2.5953,193.07,193.03,11.28547368]
[1735541031605,8.26547368,193.1,193.0,3.0248]
[1735541031809,8.26547368,193.08,193.01,3.02]
[1735541032304,2.5957,193.04,193.0,8.26547368]
[1735541032508,8.26547368,193.04,192.95,3.1505]
[1735541032702,8.26547368,193.04,192.96,11.28547368]
[1735541032905,2.596,193.02,192.96,11.28547368]
[1735541033108,8.26547368,193.04,192.96,11.28547368]
[1735541033409,2.5956,193.05,193.0,10.86157368]
[1735541033906,9.84717368,193.08,193.02,8.26547368]
[1735541035414,2.5954,193.06,193.02,10.86137368]
[1735541042619,2.5953,193.07,193.03,2.5957]
[1735541042819,3.02,193.16,193.06,8.26547368]
[1735541043020,8.26547368,193.13,193.06,8.26547368]
[1735541044124,8.26547368,193.11,193.06,8.26547368]
[1735541044325,8.26547368,193.09,193.02,8.26547368]
[1735541044727,8.26547368,193.09,193.01,11.28547368]
[1735541045427,2.5955,193.06,193.01,13.88147368]
[1735541047525,2.5955,193.06,193.02,2.5959]
[1735541049523,8.26547368,193.07,192.95,3.1505]
[1735541049728,8.26547368,193.05,192.98,8.26547368]
[1735541049923,8.26547368,193.05,192.99,3.97046861]
[1735541050124,2.5963,192.99,192.96,11.28547368]
[1735541050329,2.5963,192.99,192.97,3.97226601]
[1735541050530,2.5963,192.99,192.96,11.28547368]
[1735541050932,2.5962,193.0,192.97,3.97252079]
[1735541051131,2.5962,193.0,192.96,13.88217368]
[1735541051430,2.5962,193.0,192.97,3.97254733]
[1735541051622,2.5962,193.0,192.96,13.88217368]
[1735541051826,2.5962,193.0,192.97,3.9723124]
[1735541052031,2.5962,193.0,192.96,13.88217368]
[1735541052333,2.5962,193.0,192.97,3.97221259]
[1735541052632,2.5962,193.0,192.96,13.88217368]
[1735541052929,2.5962,193.0,192.97,3.97188657]
[1735541053230,2.5962,193.0,192.96,13.88217368]
[1735541053529,2.5962,193.0,192.97,3.971937]
[1735541053724,2.5962,193.0,192.96,13.88217368]
[1735541053921,2.5962,193.0,192.97,3.97142317]
[1735541054125,2.5962,193.0,192.96,13.88217368]
[1735541054322,2.5962,193.0,192.97,3.9707593]
[1735541054523,2.5962,193.0,192.96,10.86217368]
[1735541054727,2.5962,193.0,192.97,3.97034078]
[1735541054928,2.5962,193.0,192.96,13.88217368]
[1735541055130,2.5962,193.0,192.97,3.97093669]
[1735541055330,2.5962,193.0,192.96,13.88217368]
[1735541055530,2.5962,193.0,192.97,3.97072921]
[1735541055730,2.5962,193.0,192.96,13.88217368]
[1735541055934,2.5962,193.0,192.97,3.97046333]
[1735541056134,2.5962,193.0,192.96,13.88217368]
[1735541056338,2.5962,193.0,192.97,3.97050877]
[1735541056630,2.5962,193.0,192.96,13.88217368]
[1735541056835,2.5962,193.0,192.97,3.97008202]
[1735541057031,2.5962,193.0,192.96,13.88217368]
[1735541057335,2.5962,193.0,192.97,3.97008202]
[1735541057540,2.5962,193.0,192.96,13.88217368]
[1735541057734,2.5962,193.0,192.97,3.96967479]
[1735541057928,2.5962,193.0,192.96,13.88217368]
[1735541058134,2.5962,193.0,192.97,3.9695676]
[1735541058333,2.5962,193.0,192.96,13.88217368]
[1735541059636,2.5962,193.0,192.96,10.86217368]
[1735541059832,2.5962,193.0,192.96,13.88217368]
[1735541067541,2.5962,193.0,192.97,3.97255405]
[1735541067838,2.5962,193.0,192.96,13.88217368]
[1735541068136,2.5962,193.0,192.97,3.97228828]
[1735541068336,2.5962,193.0,192.96,13.88217368]
[1735541068536,2.5962,193.0,192.97,3.97340029]
[1735541068734,2.5962,193.0,192.96,13.88217368]
[1735541068937,2.5961,193.01,192.97,6.57000358]
[1735541069136,2.5961,193.01,192.97,2.5966]
[1735541070540,2.5961,193.01,192.98,3.97661263]
[1735541070733,2.5961,193.01,192.97,2.5966]
[1735541070935,2.5961,193.01,192.98,3.97565475]
[1735541071131,2.5961,193.01,192.97,2.5966]
[1735541071340,2.5961,193.01,192.98,3.97561873]
[1735541071539,2.5961,193.01,192.97,2.5966]
[1735541071735,2.5961,193.01,192.98,3.97800369]
[1735541071937,2.5961,193.01,192.97,2.5966]
[1735541072242,2.5961,193.01,192.98,3.97775876]
[1735541072437,2.5961,193.01,192.99,3.9782219]
[1735541072638,2.5961,193.01,192.97,2.5966]
[1735541072835,2.5961,193.01,192.98,3.97759219]
[1735541073041,2.5961,193.01,192.97,2.5966]
[1735541073241,2.5961,193.01,192.98,3.9776347]
[1735541073438,2.5961,193.01,192.97,2.5966]
[1735541073634,2.5961,193.01,192.98,3.97771421]
[1735541073836,2.5961,193.01,192.99,3.97771421]
[1735541074043,2.5961,193.01,192.97,2.5966]
[1735541074340,2.5961,193.01,192.98,3.97930479]
[1735541074535,2.5961,193.01,192.99,3.97930479]
[1735541074738,2.5961,193.01,192.97,2.5966]
[1735541074937,2.5961,193.01,192.98,3.97986377]
[1735541075138,2.5961,193.01,192.99,3.97986377]
[1735541075441,2.5961,193.01,192.97,2.5966]
[1735541075643,2.5961,193.01,192.98,3.98106742]
[1735541075846,2.5961,193.01,192.99,3.98106742]
[1735541076141,2.5961,193.01,192.97,2.5966]
[1735541076342,2.5961,193.01,192.98,3.98114368]
[1735541076541,2.5961,193.01,192.97,2.5966]
[1735541076742,2.5961,193.01,192.99,3.98125594]
[1735541076945,2.5961,193.01,192.97,2.5966]
[1735541077141,2.5963,192.99,192.98,3.98178773]
[1735541077342,4.6812,193.07,192.92,44.95148067]
[1735541077643,8.26547368,192.97,192.93,3.98394505]
[1735541077847,8.26547368,192.97,192.94,3.98394505]
[1735541078033,8.26547368,192.97,192.95,3.98394505]
[1735541078034,2.5967,192.96,192.95,3.98394505]
[1735541079639,2.5967,192.96,192.92,5.6173]
[1735541079847,2.5967,192.96,192.95,3.9805151]
[1735541080044,2.5967,192.96,192.93,3.9805151]
[1735541080344,2.5967,192.96,192.94,3.9805151]
[1735541080539,2.5967,192.96,192.92,5.6173]
[1735541080741,2.5967,192.96,192.93,3.98051423]
[1735541081043,2.5967,192.96,192.94,3.98051423]
[1735541081245,2.5968,192.96,192.93,2.5971]
[1735541081538,2.5968,192.96,192.94,3.98055817]
[1735541081734,2.5968,192.96,192.93,2.5971]
[1735541081938,2.5968,192.96,192.94,3.98040083]
[1735541082141,2.5968,192.96,192.93,2.5971]
[1735541082444,2.5968,192.96,192.94,3.97975645]
[1735541082646,2.5968,192.96,192.93,2.5971]
[1735541082940,8.26547368,192.97,192.94,3.97927189]
[1735541083144,8.26547368,192.97,192.91,8.26547368]
[1735541083345,8.26547368,192.97,192.92,3.97957831]
[1735541083542,2.5968,192.96,192.93,3.97957831]
[1735541083734,8.26547368,192.97,192.91,10.86287368]
[1735541084043,8.26547368,192.97,192.92,3.97899916]
[1735541084242,8.26547368,192.97,192.93,3.97899916]
[1735541084445,8.26547368,192.97,192.91,10.86287368]
[1735541084639,8.26547368,192.97,192.92,3.9785446]
[1735541084839,8.26547368,192.97,192.91,2.5974]
[1735541085144,2.597,192.95,192.92,3.97878707]
[1735541085343,8.26547368,192.97,192.91,10.86287368]
[1735541085540,8.26547368,192.97,192.92,3.97920037]
[1735541085842,8.26547368,192.95,192.86,47.99518502]
[1735541086044,8.26547368,192.93,192.87,3.97894232]
[1735541086235,8.26547368,192.93,192.88,3.97894232]
[1735541086437,8.26547368,192.93,192.89,3.97894232]
[1735541086638,8.26547368,192.93,192.87,2.5979]
[1735541086639,2.5974,192.91,192.87,2.5979]
[1735541086849,2.5974,192.91,192.88,3.97832947]
[1735541087144,8.26547368,192.93,192.89,3.97832947]
[1735541087346,2.5973,192.92,192.88,2.5978]
[1735541087536,2.5973,192.92,192.89,3.97856901]
[1735541087742,2.5973,192.92,192.88,2.5978]
[1735541088037,2.5973,192.92,192.89,3.97779175]
[1735541088241,2.5973,192.92,192.88,2.5978]
[1735541088442,2.5973,192.92,192.89,3.97773754]
[1735541088646,2.5973,192.92,192.88,2.5978]
[1735541089143,2.5974,192.91,192.89,3.97802605]
[1735541089335,8.26547368,192.95,192.88,8.26547368]
[1735541089536,8.26547368,192.95,192.89,3.97800774]
[1735541089736,8.26547368,192.95,192.88,8.26547368]
[1735541089945,8.26547368,192.95,192.89,3.977575]
[1735541090145,8.26547368,192.95,192.88,8.26547368]
[1735541090445,2.597,192.94,192.9,2.5975]
[1735541090739,3.02,192.98,192.92,8.26547368]
[1735541090740,8.26547368,192.98,192.92,8.26547368]
[1735541090944,2.5966,192.98,192.93,2.597]
[1735541091147,2.5966,192.98,192.92,8.26547368]
[1735541091447,2.5966,192.98,192.93,3.97513184]
[1735541091741,2.5964,192.99,192.94,3.9751469]
[1735541091942,2.5964,192.99,192.93,8.26547368]
[1735541092145,2.5964,192.99,192.9,3.02]
[1735541092146,2.5964,192.99,192.95,8.26547368]
[1735541093347,10.86167368,193.0,192.96,2.5967]
[1735541094245,2.5962,193.0,192.96,2.5967]
[1735541094548,10.86157368,193.01,192.97,2.5965]
[1735541096143,2.5962,193.0,192.97,2.5965]
[1735541097243,2.5962,193.0,192.96,2.5967]
[1735541097548,8.26547368,192.99,192.95,3.02]
[1735541098147,2.5965,192.98,192.95,3.02]
[1735541099045,10.86177368,192.99,192.95,5.6168]
[1735541100846,10.86177368,192.99,192.96,3.97862262]
[1735541101048,10.86177368,192.99,192.95,5.6168]
[1735541101751,8.26547368,192.99,192.96,2.5967]
[1735541101950,86.4460941,193.16,192.97,3.97760582]
[1735541102152,8.46057977,193.11,192.98,12.24246215]
[1735541102352,8.26547368,193.04,192.99,3.97698847]
[1735541102551,10.86127368,193.04,192.99,2.5963]
[1735541103056,2.5958,193.03,193.0,3.97529712]
[1735541103355,2.5958,193.03,192.99,2.5963]
[1735541103555,2.5958,193.03,193.0,3.97597028]
[1735541103851,10.86117368,193.04,192.98,2.5964]
[1735541104155,8.26547368,193.04,192.99,3.97568462]
[1735541104354,8.26547368,193.04,193.0,3.97568462]
[1735541104554,8.26547368,193.04,192.96,8.26547368]
[1735541104853,4.6542,193.11,192.98,8.26547368]
[1735541105055,8.26547368,193.08,193.02,8.26547368]
[1735541105251,4.6542,193.11,193.03,6.99513087]
[1735541105449,8.26547368,193.12,193.04,12.23781041]
[1735541105649,8.26547368,193.12,193.04,8.26547368]
[1735541105854,8.26547368,193.12,193.05,3.97130802]
[1735541106055,8.26547368,193.12,193.04,8.26547368]
[1735541106254,8.26547368,193.12,193.05,3.97088687]
[1735541106455,10.86017368,193.12,193.07,2.5952]
[1735541107559,10.86017368,193.12,193.08,2.5951]
[1735541107958,10.86017368,193.12,193.06,8.26547368]
[1735541108159,10.86017368,193.12,193.07,2.5953]
[1735541110258,8.26547368,193.14,193.08,11.28547368]
[1735541110459,38.78163922,193.17,193.1,8.26547368]
[1735541110661,8.26547368,193.18,193.12,8.26547368]
[1735541110965,10.85937368,193.18,193.13,2.5944]
[1735541112058,2.594,193.17,193.12,10.86007368]